[Event "European Online Club-ch-D 2021"]
[Site "Online"]
[Date "2021.03.27"]
[Round "2.6"]
[White "Ibrahimli, Murad"]
[Black "Nandhidhaa, P V"]
[Result "1-0"]
[ECO "E48"]
[WhiteElo "2436"]
[BlackElo "2365"]
[Annotator "NA"]
[PlyCount "99"]
[EventDate "2021.03.27"]
[EventType "team-tourn"]
[EventCountry "NET"]
[SourceTitle "playchess.com"]
[Source "ChessBase"]
[SourceQuality "1"]
[TimeControl "900+5"]

1. d4 {[%emt 0:00:00]} Nf6 {[%emt 0:00:06]} 2. c4 {[%emt 0:00:04]} e6 {[%emt 0:00:01]} 3. Nc3 {[%emt 0:00:03]} Bb4 {[%emt 0:00:03]} 4. e3 {[%emt 0:00:02]} O-O {[%emt 0:00:04]} 5. Bd3 {[%emt 0:00:01]} d5 {[%emt 0:00:02]} 6. Nge2 {[%emt 0:00:03]} dxc4 {[%emt 0:00:20]} 7. Bxc4 {[%emt 0:00:03]} c5 {[%emt 0:00:01]} 8. O-O {[%emt 0:00:04]} cxd4 {[%emt 0:00:02]} 9. exd4 {[%emt 0:00:03]} b6 {[%emt 0:00:10]} 10. Qd3 {[%emt 0:00:34]} Bb7 {[%emt 0:00:14]} 11. a3 {[%emt 0:00:23]} Bd6 {[%emt 0:00:04]} 12. Qh3 {[%emt 0:00:22]} Nc6 {[%emt 0:00:50]} 13. Rd1 {[%emt 0:01:01]} Rc8 {[%emt 0:03:28]} 14. Ba2 {[%emt 0:01:59]} Ne7 {[%emt 0:01:03]} 15. Bg5 {[%emt 0:00:06]} Ned5 {[%emt 0:01:06]} 16. Nxd5 {[%emt 0:00:06]} Bxd5 {[%emt 0:00:05]} 17. Bxd5 {[%emt 0:00:03]} exd5 {[%emt 0:00:05]} 18. Nc3 {[%emt 0:00:01]} Be7 {[%emt 0:01:09]} 19. Qf3 {[%emt 0:00:43]} g6 {[%emt 0:01:03]} 20. Re1 {[%emt 0:00:09]} Rc6 {[%emt 0:03:25]} 21. Rxe7 {[%emt 0:00:30]} Qxe7 {[%emt 0:00:06]} 22. Nxd5 {[%emt 0:00:01]} Nxd5 {[%emt 0:00:11]} 23. Bxe7 {[%emt 0:00:03]} Nxe7 {[%emt 0:00:01]} 24. Re1 {[%emt 0:00:04]} Rfc8 {[%emt 0:00:08]} 25. g4 {[%emt 0:00:06]} R8c7 {[%emt 0:01:45]} 26. d5 {[%emt 0:00:21]} Rc1 {[%emt 0:00:06]} 27. Rxc1 {[%emt 0:00:06]} Rxc1+ {[%emt 0:00:02]} 28. Kg2 {[%emt 0:00:01]} Nc8 {[%emt 0:00:54]} 29. Qf6 {[%emt 0:00:06]} Kf8 {[%emt 0:00:16]} 30. d6 {[%emt 0:00:06]} Ke8 {[%emt 0:00:02]} 31. d7+ {[%emt 0:01:10]} Kxd7 {[%emt 0:00:03]} 32. Qxf7+ {[%emt 0:00:01]} Ne7 {[%emt 0:00:02]} 33. Qxh7 {[%emt 0:00:02]} Rc2 {[%emt 0:00:05]} 34. Qg7 {[%emt 0:00:02]} Ke6 {[%emt 0:00:03]} 35. h4 {[%emt 0:00:03]} Rc4 {[%emt 0:00:04]} 36. f3 {[%emt 0:00:02]} Rc5 {[%emt 0:00:05]} 37. Kg3 {[%emt 0:00:02]} Rd5 {[%emt 0:00:04]} 38. Qh7 {[%emt 0:00:16]} Rd2 {[%emt 0:00:07]} 39. Qh8 {[%emt 0:00:04]} Rd5 {[%emt 0:00:06]} 40. Qh6 {[%emt 0:00:21]} Kf7 {[%emt 0:00:04]} 41. Qf4+ {[%emt 0:00:04]} Ke6 {[%emt 0:00:10]} 42. Qe4+ {[%emt 0:00:02]} Kf7 {[%emt 0:00:12]} 43. f4 {[%emt 0:00:03]} a5 {[%emt 0:00:05]} 44. h5 {[%emt 0:00:17]} gxh5 {[%emt 0:00:04]} 45. f5 {[%emt 0:00:01]} hxg4 {[%emt 0:00:07]} 46. Qe6+ {[%emt 0:00:02]} Kf8 {[%emt 0:00:09]} 47. f6 {[%emt 0:00:01]} Rd3+ {[%emt 0:00:10]} 48. Kxg4 {[%emt 0:00:02]} Ng8 {[%emt 0:00:04]} 49. Qc8+ {[%emt 0:00:17]} Kf7 {[%emt 0:00:08]} 50. Qc4+ {[%emt 0:00:02]} 1-0

[Event "European Online Club-ch-D 2021"]
[Site "Online"]
[Date "2021.03.27"]
[Round "2.7"]
[White "Dauletova, Gulmira"]
[Black "Babazada, Khazar"]
[Result "1/2-1/2"]
[ECO "B03"]
[WhiteElo "2285"]
[BlackElo "2409"]
[Annotator "NA"]
[PlyCount "95"]
[EventDate "2021.03.27"]
[EventType "team-tourn"]
[EventCountry "NET"]
[SourceTitle "playchess.com"]
[Source "ChessBase"]
[SourceQuality "1"]
[TimeControl "900+5"]

1. e4 {[%emt 0:00:00]} Nf6 {[%emt 0:00:03]} 2. e5 {[%emt 0:00:02]} Nd5 {[%emt 0:00:01]} 3. d4 {[%emt 0:00:03]} d6 {[%emt 0:00:01]} 4. c4 {[%emt 0:00:02]} Nb6 {[%emt 0:00:01]} 5. exd6 {[%emt 0:00:02]} cxd6 {[%emt 0:00:01]} 6. Nc3 {[%emt 0:00:03]} g6 {[%emt 0:00:01]} 7. Be3 {[%emt 0:00:02]} Bg7 {[%emt 0:00:02]} 8. Rc1 {[%emt 0:00:02]} O-O {[%emt 0:00:01]} 9. b3 {[%emt 0:00:02]} Bf5 {[%emt 0:00:03]} 10. g4 {[%emt 0:00:02]} Bd7 {[%emt 0:00:07]} 11. Bg2 {[%emt 0:00:02]} Nc6 {[%emt 0:02:06]} 12. d5 {[%emt 0:00:05]} Ne5 {[%emt 0:00:03]} 13. h3 {[%emt 0:00:04]} e6 {[%emt 0:06:45]} 14. f4 {[%emt 0:05:36]} Nbxc4 {[%emt 0:00:06]} 15. bxc4 {[%emt 0:00:03]} Nxc4 {[%emt 0:00:01]} 16. Bf2 {[%emt 0:01:49]} Qa5 {[%emt 0:03:33]} 17. Nge2 {[%emt 0:00:11]} Rac8 {[%emt 0:00:23]} 18. O-O {[%emt 0:01:31]} e5 {[%emt 0:00:15]} 19. fxe5 {[%emt 0:01:22]} dxe5 {[%emt 0:01:19]} 20. Ne4 {[%emt 0:01:26]} f5 {[%emt 0:01:24]} 21. gxf5 {[%emt 0:00:14]} gxf5 {[%emt 0:00:03]} 22. Ng5 {[%emt 0:00:39]} Rf6 {[%emt 0:00:12]} 23. Ng3 {[%emt 0:00:35]} Rg6 {[%emt 0:00:11]} 24. Ne6 {[%emt 0:00:57]} Bh6 {[%emt 0:00:09]} 25. Rxc4 {[%emt 0:00:18]} Rxc4 {[%emt 0:00:04]} 26. Nxf5 {[%emt 0:00:01]} Qa3 {[%emt 0:00:07]} 27. Ne7+ {[%emt 0:00:04]} Qxe7 {[%emt 0:00:02]} 28. Qb3 {[%emt 0:00:11]} b5 {[%emt 0:00:04]} 29. Kh1 {[%emt 0:00:13]} Kh8 {[%emt 0:00:08]} 30. Bg1 {[%emt 0:00:52]} Bxe6 {[%emt 0:00:03]} 31. dxe6 {[%emt 0:00:02]} Bf4 {[%emt 0:00:04]} 32. Qxb5 {[%emt 0:00:18]} Rc8 {[%emt 0:00:02]} 33. Qd7 {[%emt 0:00:06]} Qxe6 {[%emt 0:00:11]} 34. Qxe6 {[%emt 0:00:08]} Rxe6 {[%emt 0:00:02]} 35. Bxa7 {[%emt 0:00:13]} Rc2 {[%emt 0:00:08]} 36. Bd5 {[%emt 0:00:10]} Re7 {[%emt 0:00:05]} 37. Bg1 {[%emt 0:00:17]} Rc3 {[%emt 0:00:02]} 38. Rxf4 {[%emt 0:00:04]} Rxh3+ {[%emt 0:00:06]} 39. Kg2 {[%emt 0:00:02]} Rd3 {[%emt 0:00:07]} 40. Rf8+ {[%emt 0:00:04]} Kg7 {[%emt 0:00:01]} 41. Rg8+ {[%emt 0:00:02]} Kf6 {[%emt 0:00:01]} 42. Bb3 {[%emt 0:00:05]} e4 {[%emt 0:00:05]} 43. Bf2 {[%emt 0:00:11]} Rg7+ {[%emt 0:00:07]} 44. Rxg7 {[%emt 0:00:03]} Kxg7 {[%emt 0:00:01]} 45. Bc2 {[%emt 0:00:06]} Rd2 {[%emt 0:00:01]} 46. Bxe4 {[%emt 0:00:01]} Rxa2 {[%emt 0:00:03]} 47. Kf3 {[%emt 0:00:04]} Rxf2+ {[%emt 0:00:17]} 48. Kxf2 {[%emt 0:00:02]} 1/2-1/2

[Event "European Online Club-ch-D 2021"]
[Site "Online"]
[Date "2021.03.27"]
[Round "2.8"]
[White "Eynullayev, Atilla"]
[Black "Muminova, Nafisa"]
[Result "1-0"]
[ECO "C02"]
[WhiteElo "2347"]
[BlackElo "2274"]
[Annotator "NA"]
[PlyCount "67"]
[EventDate "2021.03.27"]
[EventType "team-tourn"]
[EventCountry "NET"]
[SourceTitle "playchess.com"]
[Source "ChessBase"]
[SourceQuality "1"]
[TimeControl "900+5"]

1. e4 {[%emt 0:00:00]} e6 {[%emt 0:00:06]} 2. d4 {[%emt 0:00:02]} d5 {[%emt 0:00:02]} 3. e5 {[%emt 0:00:01]} c5 {[%emt 0:00:02]} 4. c3 {[%emt 0:00:02]} Nc6 {[%emt 0:00:04]} 5. Nf3 {[%emt 0:00:01]} Qb6 {[%emt 0:00:02]} 6. a3 {[%emt 0:00:02]} f6 {[%emt 0:00:02]} 7. Bd3 {[%emt 0:00:02]} Bd7 {[%emt 0:00:20]} 8. O-O {[%emt 0:00:09]} O-O-O {[%emt 0:00:02]} 9. dxc5 {[%emt 0:01:21]} Bxc5 {[%emt 0:00:10]} 10. b4 {[%emt 0:00:02]} Bf8 {[%emt 0:00:02]} 11. Qe2 {[%emt 0:00:50]} Qc7 {[%emt 0:00:30]} 12. exf6 {[%emt 0:00:30]} gxf6 {[%emt 0:00:05]} 13. c4 {[%emt 0:00:02]} d4 {[%emt 0:01:24]} 14. c5 {[%emt 0:01:54]} e5 {[%emt 0:00:26]} 15. Nbd2 {[%emt 0:01:48]} Nge7 {[%emt 0:00:25]} 16. Nc4 {[%emt 0:02:13]} Nd5 {[%emt 0:00:06]} 17. Bd2 {[%emt 0:00:20]} Kb8 {[%emt 0:00:47]} 18. Rfc1 {[%emt 0:00:20]} Nce7 {[%emt 0:00:33]} 19. b5 {[%emt 0:00:48]} Nc3 {[%emt 0:00:18]} 20. Bxc3 {[%emt 0:00:09]} dxc3 {[%emt 0:00:02]} 21. c6 {[%emt 0:00:35]} bxc6 {[%emt 0:00:03]} 22. bxc6 {[%emt 0:00:12]} Bxc6 {[%emt 0:00:04]} 23. Rxc3 {[%emt 0:00:33]} Nd5 {[%emt 0:00:05]} 24. Rb3+ {[%emt 0:00:14]} Ka8 {[%emt 0:00:02]} 25. Be4 {[%emt 0:00:49]} Nf4 {[%emt 0:00:14]} 26. Qe3 {[%emt 0:00:02]} Bh6 {[%emt 0:00:40]} 27. Qc5 {[%emt 0:01:04]} Rd5 {[%emt 0:01:45]} 28. Bxd5 {[%emt 0:00:11]} Nxd5 {[%emt 0:00:02]} 29. Na5 {[%emt 0:00:09]} Rc8 {[%emt 0:00:09]} 30. Rab1 {[%emt 0:00:20]} Nb6 {[%emt 0:00:16]} 31. Rc3 {[%emt 0:00:29]} Qd7 {[%emt 0:00:27]} 32. Nxc6 {[%emt 0:00:22]} Na4 {[%emt 0:00:03]} 33. Qb5 {[%emt 0:00:05]} Nb6 {[%emt 0:00:37]} 34. a4 {[%emt 0:00:13]} 1-0

[Event "European Online Club-ch-D 2021"]
[Site "Online"]
[Date "2021.03.27"]
[Round "2.9"]
[White "Reimanis, Ritvars"]
[Black "Bauer, Christian"]
[Result "0-1"]
[ECO "A43"]
[WhiteElo "2412"]
[BlackElo "2639"]
[Annotator "ChessBase"]
[PlyCount "82"]
[EventDate "2021.03.27"]
[EventType "team-tourn"]
[EventCountry "NET"]
[SourceTitle "playchess.com"]
[Source "ChessBase"]
[SourceQuality "1"]
[TimeControl "900+5"]

1. d4 {[%emt 0:00:00]} g6 {[%emt 0:00:04]} 2. c4 {[%emt 0:00:07]} Bg7 {[%emt 0:00:04]} 3. Nc3 {[%emt 0:00:06]} c5 {[%emt 0:00:12]} 4. d5 {[%emt 0:00:28]} d6 {[%emt 0:00:05]} 5. e4 {[%emt 0:00:11]} e6 {[%emt 0:00:02]} 6. Bd3 {[%emt 0:00:32]} a6 {[%emt 0:00:26]} 7. a4 {[%emt 0:00:03]} Ne7 {[%emt 0:00:23]} 8. h4 {[%emt 0:01:16]} exd5 {[%emt 0:00:59]} 9. cxd5 {[%emt 0:00:04]} h5 {[%emt 0:00:25]} 10. Bf4 {[%emt 0:00:30]} O-O {[%emt 0:00:40]} 11. Qd2 {[%emt 0:00:02]} Qc7 {[%emt 0:00:09]} 12. Nf3 {[%emt 0:00:25]} Nd7 {[%emt 0:01:08]} 13. Bh6 {[%emt 0:00:35]} Rb8 {[%emt 0:00:53]} 14. Rc1 {[%emt 0:00:22]} Re8 {[%emt 0:00:29]} 15. Bxg7 {[%emt 0:00:05]} Kxg7 {[%emt 0:00:01]} 16. O-O {[%emt 0:00:48]} Ng8 {[%emt 0:00:15]} 17. Rfe1 {[%emt 0:01:01]} Ngf6 {[%emt 0:00:47]} 18. b3 {[%emt 0:00:35]} Qd8 {[%emt 0:01:06]} 19. Qb2 {[%emt 0:00:53]} Kg8 {[%emt 0:00:12]} 20. Bf1 {[%emt 0:01:44]} Ng4 {[%emt 0:00:30]} 21. b4 {[%emt 0:00:55]} cxb4 {[%emt 0:01:21]} 22. Qxb4 {[%emt 0:00:03]} Qf6 {[%emt 0:00:01]} 23. Qd4 {[%emt 0:00:33]} Nde5 {[%emt 0:00:07]} 24. Ng5 {[%emt 0:00:36]} Qf4 {[%emt 0:00:16]} 25. g3 {[%emt 0:00:31]} Qxg5 {[%emt 0:00:04]} 26. Qa7 {[%emt 0:00:10]} Nf3+ {[%emt 0:01:03]} 27. Kh1 {[%emt 0:00:06]} Qf6 {[%emt 0:01:07]} 28. e5 {[%emt 0:00:24]} Qf5 {[%emt 0:01:01]} 29. Re4 {[%emt 0:01:57]} Ra8 {[%emt 0:00:58]} 30. Qxa8 {[%emt 0:00:54]} Nxf2+ {[%emt 0:00:03]} 31. Kg2 {[%emt 0:00:01]} Nxe4 {[%emt 0:00:07]} 32. Nxe4 {[%emt 0:00:04]} Qxe4 {[%emt 0:00:41]} 33. Rxc8 {[%emt 0:00:19]} Nxe5+ {[%emt 0:00:17]} 34. Kg1 {[%emt 0:00:25]} Qe3+ {[%emt 0:00:34]} 35. Kh1 {[%emt 0:00:26]} Rxc8 {[%emt 0:00:04]} 36. Qxc8+ {[%emt 0:00:02]} Kg7 {[%emt 0:00:02]} 37. Qxb7 {[%emt 0:00:09]} Qxg3 {[%emt 0:00:05]} 38. Bg2 {[%emt 0:00:28]} Ng4 {[%emt 0:00:20]} 39. Qb2+ {[%emt 0:00:08]} Kh7 {[%emt 0:00:03]} 40. Kg1 {[%emt 0:00:16]} Qe3+ {[%emt 0:00:09]} 41. Kh1 {[%emt 0:00:03]} Qe1+ {[%emt 0:00:02]} 0-1

[Event "European Online Club-ch-D 2021"]
[Site "Online"]
[Date "2021.03.27"]
[Round "2.10"]
[White "Pelletier, Yannick"]
[Black "Kvetny, Mark"]
[Result "0-1"]
[ECO "E94"]
[WhiteElo "2581"]
[BlackElo "2416"]
[Annotator "ChessBase"]
[PlyCount "80"]
[EventDate "2021.03.27"]
[EventType "team-tourn"]
[EventCountry "NET"]
[SourceTitle "playchess.com"]
[Source "ChessBase"]
[SourceQuality "1"]
[TimeControl "900+5"]

1. d4 {[%emt 0:00:00]} Nf6 {[%emt 0:00:13]} 2. c4 {[%emt 0:00:18]} d6 {[%emt 0:00:25]} 3. Nc3 {[%emt 0:00:04]} Nbd7 {[%emt 0:00:02]} 4. e4 {[%emt 0:00:03]} e5 {[%emt 0:00:01]} 5. Nf3 {[%emt 0:00:10]} g6 {[%emt 0:00:09]} 6. Be2 {[%emt 0:00:02]} Bg7 {[%emt 0:00:02]} 7. O-O {[%emt 0:00:02]} O-O {[%emt 0:00:01]} 8. Be3 {[%emt 0:00:09]} Re8 {[%emt 0:00:05]} 9. d5 {[%emt 0:00:04]} Nh5 {[%emt 0:00:03]} 10. g3 {[%emt 0:00:03]} Bf8 {[%emt 0:00:01]} 11. Ne1 {[%emt 0:00:04]} Ng7 {[%emt 0:00:04]} 12. Nd3 {[%emt 0:00:03]} f5 {[%emt 0:00:15]} 13. f3 {[%emt 0:00:08]} Be7 {[%emt 0:00:11]} 14. b4 {[%emt 0:00:03]} Bg5 {[%emt 0:03:29]} 15. Qd2 {[%emt 0:00:04]} Bxe3+ {[%emt 0:00:02]} 16. Qxe3 {[%emt 0:00:00]} a5 {[%emt 0:00:07]} 17. a3 {[%emt 0:00:04]} b6 {[%emt 0:00:31]} 18. c5 {[%emt 0:01:07]} bxc5 {[%emt 0:00:39]} 19. bxc5 {[%emt 0:00:00]} Ba6 {[%emt 0:00:01]} 20. c6 {[%emt 0:02:19]} Nb6 {[%emt 0:01:05]} 21. Nb2 {[%emt 0:01:44]} Bxe2 {[%emt 0:00:10]} 22. Qxe2 {[%emt 0:00:07]} Rf8 {[%emt 0:01:32]} 23. Nba4 {[%emt 0:02:37]} Nxa4 {[%emt 0:00:34]} 24. Nxa4 {[%emt 0:00:00]} h5 {[%emt 0:00:03]} 25. Rab1 {[%emt 0:03:29]} h4 {[%emt 0:00:27]} 26. Rf2 {[%emt 0:00:13]} Nh5 {[%emt 0:01:29]} 27. Rg2 {[%emt 0:00:21]} hxg3 {[%emt 0:00:54]} 28. hxg3 {[%emt 0:00:00]} f4 {[%emt 0:00:01]} 29. g4 {[%emt 0:00:08]} Ng3 {[%emt 0:00:02]} 30. Qe1 {[%emt 0:00:17]} Kg7 {[%emt 0:00:45]} 31. Rbb2 {[%emt 0:00:09]} Rh8 {[%emt 0:00:37]} 32. Rh2 {[%emt 0:00:02]} Rb8 {[%emt 0:00:01]} 33. Rb7 {[%emt 0:01:40]} Rxh2 {[%emt 0:00:21]} 34. Kxh2 {[%emt 0:00:00]} Qh4+ {[%emt 0:00:17]} 35. Kg2 {[%emt 0:00:01]} Rh8 {[%emt 0:00:21]} 36. Qg1 {[%emt 0:02:08]} Ne2 {[%emt 0:00:20]} 37. Rxc7+ {[%emt 0:00:07]} Kf6 {[%emt 0:00:03]} 38. Qd1 {[%emt 0:00:08]} Qh2+ {[%emt 0:00:44]} 39. Kf1 {[%emt 0:00:01]} Qh1+ {[%emt 0:00:07]} 40. Kxe2 {[%emt 0:00:02]} Rh2+ {[%emt 0:00:02]} 0-1

[Event "European Online Club-ch-D 2021"]
[Site "Online"]
[Date "2021.03.27"]
[Round "2.11"]
[White "Hoffmann, Hendrik"]
[Black "Petkidis, Anthony"]
[Result "1/2-1/2"]
[ECO "C47"]
[WhiteElo "2242"]
[BlackElo "2401"]
[Annotator "NA"]
[PlyCount "73"]
[EventDate "2021.03.27"]
[EventType "team-tourn"]
[EventCountry "NET"]
[SourceTitle "playchess.com"]
[Source "ChessBase"]
[SourceQuality "1"]
[TimeControl "900+5"]

1. e4 {[%emt 0:00:00]} e5 {[%emt 0:00:04]} 2. Nf3 {[%emt 0:00:03]} Nc6 {[%emt 0:00:02]} 3. Nc3 {[%emt 0:00:01]} Nf6 {[%emt 0:00:02]} 4. d4 {[%emt 0:00:02]} exd4 {[%emt 0:00:03]} 5. Nxd4 {[%emt 0:00:03]} Bb4 {[%emt 0:00:03]} 6. Nxc6 {[%emt 0:00:04]} bxc6 {[%emt 0:00:02]} 7. Bd3 {[%emt 0:00:03]} O-O {[%emt 0:00:06]} 8. O-O {[%emt 0:00:03]} d5 {[%emt 0:00:01]} 9. exd5 {[%emt 0:00:01]} cxd5 {[%emt 0:00:03]} 10. h3 {[%emt 0:00:03]} Re8 {[%emt 0:00:15]} 11. Qf3 {[%emt 0:00:07]} c6 {[%emt 0:00:31]} 12. Bf4 {[%emt 0:00:06]} a5 {[%emt 0:01:10]} 13. Rad1 {[%emt 0:00:14]} a4 {[%emt 0:00:58]} 14. Ne2 {[%emt 0:01:14]} a3 {[%emt 0:00:43]} 15. b3 {[%emt 0:00:08]} Bc5 {[%emt 0:02:14]} 16. c4 {[%emt 0:00:35]} Be6 {[%emt 0:00:29]} 17. Bg5 {[%emt 0:00:33]} h6 {[%emt 0:01:18]} 18. Bxf6 {[%emt 0:00:08]} Qxf6 {[%emt 0:00:02]} 19. Qxf6 {[%emt 0:00:02]} gxf6 {[%emt 0:00:01]} 20. Nf4 {[%emt 0:00:00]} dxc4 {[%emt 0:00:31]} 21. Nxe6 {[%emt 0:00:16]} fxe6 {[%emt 0:00:36]} 22. Bxc4 {[%emt 0:00:03]} Kf7 {[%emt 0:00:49]} 23. Rd7+ {[%emt 0:01:35]} Re7 {[%emt 0:00:05]} 24. Rfd1 {[%emt 0:00:02]} Rae8 {[%emt 0:01:20]} 25. Kf1 {[%emt 0:00:15]} f5 {[%emt 0:00:21]} 26. Ke2 {[%emt 0:00:08]} Kf6 {[%emt 0:00:08]} 27. Rxe7 {[%emt 0:00:11]} Kxe7 {[%emt 0:00:11]} 28. Rc1 {[%emt 0:00:51]} Bd4 {[%emt 0:00:10]} 29. Bd3 {[%emt 0:00:42]} c5 {[%emt 0:00:26]} 30. g4 {[%emt 0:00:07]} Kf6 {[%emt 0:00:49]} 31. Kf3 {[%emt 0:00:59]} fxg4+ {[%emt 0:00:22]} 32. hxg4 {[%emt 0:00:40]} Kg5 {[%emt 0:00:23]} 33. Kg3 {[%emt 0:00:39]} Be5+ {[%emt 0:00:24]} 34. Kg2 {[%emt 0:00:04]} Bd4 {[%emt 0:00:10]} 35. Kg3 {[%emt 0:00:03]} Be5+ {[%emt 0:00:04]} 36. Kg2 {[%emt 0:00:02]} Bd4 {[%emt 0:00:05]} 37. Kg3 {[%emt 0:00:01]} 1/2-1/2

[Event "European Online Club-ch-D 2021"]
[Site "Online"]
[Date "2021.03.27"]
[Round "2.12"]
[White "Fischer, Daniel"]
[Black "Skulte, Christopher"]
[Result "1-0"]
[ECO "B33"]
[WhiteElo "2276"]
[BlackElo "2055"]
[Annotator "NA"]
[PlyCount "81"]
[EventDate "2021.03.27"]
[EventType "team-tourn"]
[EventCountry "NET"]
[SourceTitle "playchess.com"]
[Source "ChessBase"]
[SourceQuality "1"]
[TimeControl "900+5"]

1. e4 {[%emt 0:00:00]} c5 {[%emt 0:00:04]} 2. Nf3 {[%emt 0:00:03]} e6 {[%emt 0:00:02]} 3. d4 {[%emt 0:00:02]} cxd4 {[%emt 0:00:02]} 4. Nxd4 {[%emt 0:00:00]} Nf6 {[%emt 0:00:03]} 5. Nc3 {[%emt 0:00:02]} Nc6 {[%emt 0:00:02]} 6. Ndb5 {[%emt 0:00:03]} d6 {[%emt 0:00:05]} 7. Bf4 {[%emt 0:00:04]} e5 {[%emt 0:00:03]} 8. Bg5 {[%emt 0:00:01]} a6 {[%emt 0:00:15]} 9. Na3 {[%emt 0:00:01]} b5 {[%emt 0:00:03]} 10. Nd5 {[%emt 0:00:03]} Be7 {[%emt 0:00:09]} 11. Bxf6 {[%emt 0:00:05]} Bxf6 {[%emt 0:00:05]} 12. c4 {[%emt 0:00:01]} b4 {[%emt 0:05:00]} 13. Nc2 {[%emt 0:00:02]} a5 {[%emt 0:00:05]} 14. Qf3 {[%emt 0:00:02]} Be6 {[%emt 0:00:12]} 15. Rd1 {[%emt 0:00:20]} Bg5 {[%emt 0:00:16]} 16. g3 {[%emt 0:02:04]} O-O {[%emt 0:00:30]} 17. h4 {[%emt 0:00:03]} Bh6 {[%emt 0:00:07]} 18. Bh3 {[%emt 0:00:17]} Rb8 {[%emt 0:01:30]} 19. Kf1 {[%emt 0:00:19]} Kh8 {[%emt 0:01:38]} 20. Kg2 {[%emt 0:00:03]} Qd7 {[%emt 0:01:04]} 21. b3 {[%emt 0:00:34]} g6 {[%emt 0:00:18]} 22. h5 {[%emt 0:01:19]} f5 {[%emt 0:00:51]} 23. hxg6 {[%emt 0:01:12]} hxg6 {[%emt 0:00:18]} 24. Bxf5 {[%emt 0:01:11]} Kg7 {[%emt 0:00:50]} 25. Bxe6 {[%emt 0:00:24]} Qxe6 {[%emt 0:00:25]} 26. Qe2 {[%emt 0:00:09]} a4 {[%emt 0:00:28]} 27. Rh3 {[%emt 0:00:28]} axb3 {[%emt 0:00:05]} 28. axb3 {[%emt 0:00:02]} Rh8 {[%emt 0:01:09]} 29. Rdh1 {[%emt 0:00:09]} Bg5 {[%emt 0:00:02]} 30. Rxh8 {[%emt 0:00:06]} Rxh8 {[%emt 0:00:02]} 31. Rxh8 {[%emt 0:00:02]} Kxh8 {[%emt 0:00:02]} 32. Ndxb4 {[%emt 0:00:12]} Na5 {[%emt 0:00:19]} 33. Qd3 {[%emt 0:00:14]} Qg4 {[%emt 0:00:12]} 34. Nd5 {[%emt 0:01:10]} Nb7 {[%emt 0:00:43]} 35. b4 {[%emt 0:00:15]} Kg7 {[%emt 0:00:06]} 36. Nde3 {[%emt 0:00:11]} Bxe3 {[%emt 0:00:29]} 37. Nxe3 {[%emt 0:00:02]} Qc8 {[%emt 0:00:10]} 38. Qd5 {[%emt 0:00:12]} Qc7 {[%emt 0:00:06]} 39. Ng4 {[%emt 0:01:13]} Nd8 {[%emt 0:00:04]} 40. b5 {[%emt 0:00:09]} Qd7 {[%emt 0:00:08]} 41. Nxe5 {[%emt 0:00:29]} 1-0

[Event "European Online Club-ch-D 2021"]
[Site "Online"]
[Date "2021.03.27"]
[Round "2.13"]
[White "Lopez Del Alamo, Antonio"]
[Black "Parligras, Mircea-Emilian"]
[Result "1/2-1/2"]
[ECO "C28"]
[WhiteElo "2295"]
[BlackElo "2591"]
[Annotator "ChessBase"]
[PlyCount "92"]
[EventDate "2021.03.27"]
[EventType "team-tourn"]
[EventCountry "NET"]
[SourceTitle "playchess.com"]
[Source "ChessBase"]
[SourceQuality "1"]
[TimeControl "900+5"]

1. e4 {[%emt 0:00:00]} e5 {[%emt 0:00:03]} 2. Bc4 {[%emt 0:00:10]} Nc6 {[%emt 0:00:23]} 3. d3 {[%emt 0:00:04]} Nf6 {[%emt 0:00:05]} 4. Nc3 {[%emt 0:00:18]} Na5 {[%emt 0:00:23]} 5. Nge2 {[%emt 0:00:11]} Nxc4 {[%emt 0:00:07]} 6. dxc4 {[%emt 0:00:03]} d6 {[%emt 0:00:08]} 7. Qd3 {[%emt 0:00:47]} Be7 {[%emt 0:00:08]} 8. b3 {[%emt 0:01:02]} O-O {[%emt 0:00:06]} 9. a4 {[%emt 0:01:06]} Be6 {[%emt 0:00:33]} 10. Ba3 {[%emt 0:00:11]} Nd7 {[%emt 0:00:54]} 11. Ng3 {[%emt 0:00:14]} Nc5 {[%emt 0:00:46]} 12. Bxc5 {[%emt 0:00:08]} dxc5 {[%emt 0:00:03]} 13. Rd1 {[%emt 0:00:08]} Qxd3 {[%emt 0:00:34]} 14. Rxd3 {[%emt 0:00:05]} g6 {[%emt 0:00:31]} 15. Nd5 {[%emt 0:00:27]} Bd8 {[%emt 0:00:11]} 16. f3 {[%emt 0:01:48]} c6 {[%emt 0:00:07]} 17. Nc3 {[%emt 0:00:07]} Ba5 {[%emt 0:00:22]} 18. Ke2 {[%emt 0:00:04]} Rad8 {[%emt 0:00:12]} 19. Rhd1 {[%emt 0:00:04]} Rd4 {[%emt 0:00:13]} 20. Rxd4 {[%emt 0:00:14]} cxd4 {[%emt 0:00:04]} 21. Na2 {[%emt 0:00:02]} a6 {[%emt 0:01:06]} 22. Nh1 {[%emt 0:01:16]} b5 {[%emt 0:00:07]} 23. axb5 {[%emt 0:00:02]} cxb5 {[%emt 0:00:08]} 24. cxb5 {[%emt 0:00:28]} axb5 {[%emt 0:00:03]} 25. Nf2 {[%emt 0:00:06]} Rc8 {[%emt 0:00:23]} 26. Rc1 {[%emt 0:00:05]} Bd8 {[%emt 0:01:13]} 27. Kd1 {[%emt 0:01:59]} Bg5 {[%emt 0:00:18]} 28. Rb1 {[%emt 0:00:06]} f5 {[%emt 0:00:41]} 29. h3 {[%emt 0:00:05]} Kg7 {[%emt 0:02:36]} 30. Nb4 {[%emt 0:00:16]} Ra8 {[%emt 0:00:57]} 31. Nfd3 {[%emt 0:00:14]} Kf6 {[%emt 0:01:04]} 32. Nc6 {[%emt 0:00:19]} fxe4 {[%emt 0:00:34]} 33. fxe4 {[%emt 0:00:04]} Bc8 {[%emt 0:00:49]} 34. Ncxe5 {[%emt 0:00:17]} Bb7 {[%emt 0:00:21]} 35. Nd7+ {[%emt 0:01:25]} Ke7 {[%emt 0:00:03]} 36. N7c5 {[%emt 0:00:02]} Bc6 {[%emt 0:00:06]} 37. Nb4 {[%emt 0:00:16]} Kd6 {[%emt 0:00:28]} 38. Nxc6 {[%emt 0:00:05]} Kxc5 {[%emt 0:00:04]} 39. Ne5 {[%emt 0:00:03]} Kb4 {[%emt 0:00:26]} 40. Nd3+ {[%emt 0:00:38]} Kc3 {[%emt 0:00:03]} 41. b4 {[%emt 0:00:05]} Ra3 {[%emt 0:00:10]} 42. e5 {[%emt 0:00:04]} Ra2 {[%emt 0:00:14]} 43. Rb3+ {[%emt 0:00:04]} Kc4 {[%emt 0:00:02]} 44. Rb1 {[%emt 0:00:07]} Kc3 {[%emt 0:00:02]} 45. Rb3+ {[%emt 0:01:02]} Kc4 {[%emt 0:00:01]} 46. Rb1 {[%emt 0:00:01]} Kc3 {[%emt 0:00:01]} 1/2-1/2